fUSD/lending_fUSD_20260122
["ID","MTS","AMOUNT","RATE_DAILY","PERIOD"]
[403003481,1769043038691,-606.0,0.00034385,2]
[403003482,1769043038707,-150.0,0.00034426,2]
[403003483,1769043038729,-150.0,0.00034426,2]
[403003484,1769043038745,-150.0,0.00034426,2]
[403003485,1769043038760,-150.0,0.00034426,2]
[403003486,1769043038776,-150.0,0.00034426,2]
[403003487,1769043038791,-150.0,0.00034426,2]
[403003488,1769043038807,-150.144,0.00034426,2]
[403003489,1769043038830,-150.0,0.00034426,2]
[403003490,1769043038850,-200.0,0.00034437,2]
[403003491,1769043038870,-606.0,0.00034477,7]
[403003492,1769043038887,-200.0,0.00034508,2]
[403003493,1769043038906,-169.0,0.00034521,30]
[403003494,1769043038924,-333.0,0.00034521,30]
[403003495,1769043038942,-606.0,0.00034547,2]
[403003496,1769043038959,-200.0,0.00034566,2]
[403003497,1769043038975,-168.692128,0.00034599,14]
[403003498,1769043038990,-615.0,0.00034603,2]
[403003499,1769043039008,-1414.045,0.00034603,2]
[403003500,1769043039023,-1332.0,0.00034603,2]
[403003501,1769043039041,-3474.0,0.00034603,2]
[403003502,1769043039057,-489.637,0.00034603,2]
[403003503,1769043039073,-1203.0,0.00034603,2]
[403003504,1769043039089,-2440.0,0.00034603,2]
[403003505,1769043039105,-4827.0,0.00034603,2]
[403003506,1769043039121,-606.0,0.00034607,7]
[403003507,1769043039137,-269.1,0.00034641,2]
[403003508,1769043039152,-179.72,0.00034739,2]
[403003509,1769043039169,-171.97,0.00034739,2]
[403003511,1769043039184,-179.72,0.00034739,2]
[403003512,1769043039199,-171.97,0.00034739,2]
[403003513,1769043039214,-179.72,0.00034739,2]
[403003514,1769043039229,-171.97,0.00034739,2]
[403003515,1769043039244,-171.97,0.00034739,2]
[403003516,1769043039267,-179.72,0.00034739,2]
[403003517,1769043039283,-171.37,0.00034739,2]
[403003518,1769043039298,-179.72,0.00034739,2]
[403003519,1769043039313,-179.72,0.0003474,2]
[403003520,1769043039327,-631.46,0.00034761,2]
[403003521,1769043039343,-255.18,0.00034792,2]
[403003522,1769043039359,-606.0,0.00034896,2]
[403003523,1769043039374,-200.0,0.00034897,2]
[403003524,1769043039388,-297.611,0.00035,30]
[403003525,1769043039403,-200.0,0.00035032,2]
[403003526,1769043039418,-176.72,0.00035068,2]
[403003527,1769043039434,-500.0,0.00035174,2]
[403003528,1769043039449,-5523.3504735,0.00035191,2]
[403003529,1769043039465,-150.00414887,0.00035194,55]
[403003530,1769043039480,-3918.463,0.00035249,41]
[403003531,1769043039495,-372.066,0.00035249,41]
[403003532,1769043039512,-630.0,0.00035286,2]
[403003533,1769043039528,-2000.0,0.000353,2]
[403003534,1769043039542,-500.0,0.0003533,60]
[403003535,1769043039557,-500.0,0.0003533,60]
[403003536,1769043039571,-500.0,0.0003533,60]
[403003537,1769043039588,-500.0,0.0003533,60]
[403003538,1769043039603,-500.0,0.0003533,60]
[403003539,1769043039619,-488.29089137,0.0003533,20]
[403003540,1769043039635,-606.0,0.00035356,120]
[403003541,1769043039653,-4105.2975,0.00035461,2]
[403003542,1769043039668,-200.0,0.00035469,2]
[403003543,1769043039684,-207.88,0.00035488,2]
[403003544,1769043039699,-271.3250124,0.00035507,2]
[403003545,1769043039715,-172.75069061,0.00035589,120]
[403003546,1769043039730,-230.33425415,0.00035589,120]
[403003547,1769043039750,-16062.88065432,0.00035702,2]
[403003548,1769043040460,-289.4720602,0.00035702,2]
[403003549,1769043040480,-5422.72505615,0.00035702,2]
[403003550,1769043040491,-520.49846645,0.00035702,2]
[403003551,1769043040502,-3293.30861604,0.00035702,2]
[403003552,1769043040513,-18758.32370084,0.00035702,2]
[403003553,1769043040523,-151.0,0.00035702,31]
[403003554,1769043040532,-151.0,0.00035702,31]
[403003555,1769043040541,-1441.341582,0.00035702,31]
[403003556,1769043040550,-1441.341582,0.00035702,31]
[403003557,1769043040560,-1441.341582,0.00035702,31]
[403003558,1769043040569,-1441.341582,0.00035702,31]
[403003559,1769043040586,-151.0,0.00035702,31]
[403003560,1769043040597,-151.0,0.00035702,31]
[403003561,1769043040607,-151.0,0.00035702,31]
[403003562,1769043040620,-151.0,0.00035702,31]
[403003563,1769043040629,-151.0,0.00035702,31]
[403003564,1769043040639,-2439.805224,0.00035702,28]
[403003565,1769043040650,-2439.805224,0.00035702,28]
[403003566,1769043040659,-2439.805224,0.00035702,28]
[403003567,1769043040668,-2439.805224,0.00035702,28]
[403003568,1769043040678,-375.311999,0.00035702,7]
[403003569,1769043040687,-375.311999,0.00035702,7]
[403003570,1769043040696,-375.311999,0.00035702,7]
[403003571,1769043040707,-375.311999,0.00035702,7]
[403003572,1769043040717,-200.0,0.00035711,10]
[403003573,1769043040728,-200.0,0.00035712,10]
[403003574,1769043040737,-200.0,0.00035712,10]
[403003575,1769043040750,-200.0,0.00035712,10]
[403003576,1769043040761,-1000.0,0.0003576,2]
[403003577,1769043040770,-152.0,0.00035763,6]
[403003578,1769043040780,-609.0,0.00035765,120]
[403003579,1769043040790,-609.0,0.00035772,2]
[403003580,1769043040800,-747.73,0.00035808,120]
[403003581,1769043040810,-1000.0,0.0003589,14]
[403003582,1769043040819,-624.29,0.000359,14]
[403003583,1769043040829,-631.46,0.00035933,2]
[403003584,1769043040840,-1000.0,0.0003597,2]
[403003585,1769043040851,-500.0,0.0003597,2]
[403003586,1769043040860,-500.0,0.00036,60]
[403003587,1769043040869,-28080.85544042,0.00036,2]
[403003588,1769043040878,-441.00610445,0.00036,2]
[403003589,1769043040887,-152.533101,0.00036,31]
[403003590,1769043040897,-197.1024,0.00036042,2]
[403003591,1769043040907,-200.0,0.00036089,2]
[403003592,1769043040917,-5523.3504735,0.00036156,2]
[403003593,1769043040927,-168.692128,0.00036161,14]
[403003594,1769043040936,-1000.0,0.00036164,14]
[403003595,1769043040945,-339.0,0.00036247,30]
[403003596,1769043040954,-255.18,0.00036304,2]
[403003597,1769043040964,-273.864674,0.00036367,31]
[403003598,1769043040974,-152.812964,0.00036367,31]
[403003599,1769043040983,-1441.341582,0.00036367,31]
[403003600,1769043040992,-1441.341582,0.00036367,31]
[403003601,1769043041003,-1441.341582,0.00036367,31]
[403003602,1769043041012,-1441.341582,0.00036367,31]
[403003603,1769043041022,-151.0,0.00036367,31]
[403003604,1769043041031,-151.0,0.00036367,31]
[403003605,1769043041040,-151.0,0.00036367,31]
[403003606,1769043041049,-151.0,0.00036367,31]
[403003607,1769043041058,-151.0,0.00036367,31]
[403003608,1769043041068,-2439.805224,0.00036367,28]
[403003609,1769043041076,-2439.805224,0.00036367,28]
[403003610,1769043041086,-2439.805224,0.00036367,28]
[403003611,1769043041095,-150.20364296,0.00036367,28]
[403003612,1769043041119,-151.0,0.00032999,31]
[403003613,1769043041128,-781.6,0.00036367,28]
[403003614,1769043041139,-1508.00158104,0.00036367,28]
[403003615,1769043041148,-375.311999,0.00036367,7]
[403003616,1769043041157,-375.311999,0.00036367,7]
[403003617,1769043041166,-375.311999,0.00036367,7]
[403003618,1769043041175,-375.311999,0.00036367,7]
[403003619,1769043041184,-6832.10080246,0.00036367,2]
[403003620,1769043041205,-564.489387,0.00036367,2]
[403003622,1769043043825,-354.0347142,0.00020044,2]
[403003623,1769043043856,-145.9652858,0.00020044,2]
[403003624,1769043043867,-158.28652982,0.00020044,2]
[403003625,1769043043876,-598.51797452,0.00020044,2]
[403003626,1769043043885,-97.23020986,0.00020044,2]
[403003627,1769043044368,-139.25782693,0.00020044,2]
[403003628,1769043044377,-166.9376298,0.00020044,2]
[403003629,1769043044388,-333.0623702,0.00020044,2]
[403003630,1769043044398,-500.0,0.00020044,2]
[403003631,1769043044407,-500.0,0.00020044,2]
[403003632,1769043044418,-187.38841932,0.00020044,2]
[403003633,1769043044428,-311.92101281,0.00020044,2]
[403003634,1769043044438,-500.0,0.00020044,2]
[403003635,1769043044448,-354.18421662,0.00020044,2]
[403003636,1769043044459,-500.0,0.00020044,2]
[403003637,1769043044469,-23.93083479,0.00020044,2]
[403003638,1769043044555,-476.06916521,0.00020044,2]
[403003639,1769043044565,-500.0,0.00020044,2]
[403003640,1769043044577,-500.0,0.00020044,2]
[403003641,1769043044587,-617.43753738,0.00020044,2]
[403003642,1769043044596,-648.89727308,0.00020044,2]
[403003643,1769043044606,-500.0,0.00020044,2]
[403003644,1769043044616,-500.0,0.00020044,2]
[403003645,1769043044625,-500.0,0.00020044,2]
[403003646,1769043044635,-500.0,0.00020044,2]
[403003647,1769043044645,-500.0,0.00020044,2]
[403003648,1769043044657,-46.13954413,0.00027634,2]
[403003660,1769043045711,-546.14601162,0.00027634,2]
[403003663,1769043046544,-2479.92067609,0.00027634,2]
[403003664,1769043046681,-1085.30004991,0.00027634,2]
[403003676,1769044231524,-250.0,0.00017,2]
[403003677,1769044231533,-151.0,0.00017968,2]
[403003678,1769044231542,-151.0,0.00017985,2]
[403003679,1769044231551,-38.38944181,0.00017998,2]
[403003680,1769044231630,-111.6115665,0.00017998,2]
[403003681,1769044231640,-300.0,0.00017998,2]
[403003682,1769044231649,-278.0,0.00017998,2]
[403003683,1769044231658,-500.0,0.00017999,2]
[403003684,1769044231667,-500.0,0.00017999,2]
[403003685,1769044231677,-500.0,0.00017999,2]
[403003686,1769044231686,-500.0,0.00017999,2]
[403003687,1769044231695,-500.0,0.00017999,2]
[403003688,1769044231705,-500.00000001,0.00017999,2]
[403003689,1769044231714,-500.0,0.00017999,2]
[403003690,1769044231724,-500.0,0.00017999,2]
[403003691,1769044231734,-500.0,0.00017999,2]
[403003692,1769044231743,-500.0,0.00017999,2]
[403003693,1769044231752,-500.0,0.00017999,2]
[403003694,1769044231762,-497.33591243,0.00017999,2]
[403003695,1769044231771,-500.0,0.00017999,2]
[403003696,1769044231780,-500.0,0.00017999,2]
[403003697,1769044231790,-300.0,0.00019,2]
[403003698,1769044231799,-150.00100831,0.00019267,6]
[403003699,1769044231807,-553.0,0.000196,2]
[403003701,1769044231817,-420.0,0.00019638,2]
[403003703,1769044231826,-150.00100831,0.00020536,10]
[403003705,1769044231835,-2309.82110108,0.00020951,2]
[403003708,1769044231851,-2637.67889892,0.00020951,2]
[403003710,1769044231860,-199.97,0.00021465,2]
[403003712,1769044231869,-9999.99,0.00021805,2]
[403003714,1769044231879,-150.00100831,0.00021805,15]
[403003716,1769044231888,-150.0,0.00022105,2]
[403003718,1769044231896,-150.0,0.00022205,2]
[403003720,1769044231906,-500.0,0.00022301,2]
[403003722,1769044231915,-150.0,0.00022305,2]
[403003724,1769044231926,-150.0,0.00022405,2]
[403003726,1769044231935,-150.0,0.00022505,2]
[403003728,1769044231949,-150.0,0.00022605,2]
[403003730,1769044231959,-150.0,0.00022705,2]
[403003732,1769044231968,-150.0,0.00022805,2]
[403003734,1769044231978,-161.85076816,0.00022905,2]
[403003736,1769044231988,-150.00100831,0.00023073,19]
[403003738,1769044231998,-6674.56,0.00023189,2]
[403003740,1769044232007,-150.00100831,0.00024342,23]
[403003742,1769044232018,-150.00100831,0.00025611,27]
[403003744,1769044232028,-299.0,0.00025624,2]
[403003746,1769044232038,-500.0,0.00026323,2]
[403003748,1769044232047,-199.97,0.00026831,2]
[403003750,1769044232056,-150.00100831,0.0002688,31]
[403003752,1769044232066,-946.88,0.00027017,2]
[403003754,1769044232075,-1000.0,0.00027579,2]
[403003756,1769044232083,-150.00100831,0.00028149,35]
[403003758,1769044232092,-500.0,0.00028149,35]
[403003760,1769044232101,-169.05,0.00029214,2]
[403003762,1769044232110,-191.484,0.00029331,120]
[403003764,1769044232119,-150.00100831,0.00029418,38]
[403003765,1769044232128,-2000.0,0.000299,2]
[403003767,1769044232138,-169.05,0.00029945,2]
[403003769,1769044232147,-169.05,0.00030675,2]
[403003771,1769044232156,-150.00100831,0.00030687,42]
[403003773,1769044232165,-500.0,0.00030768,2]
[403003775,1769044232174,-431.2059839,0.00030768,2]
[403003777,1769044232184,-2624.38297788,0.00030768,2]
[403003779,1769044232193,-768.02304485,0.00030857,2]
[403003781,1769044232202,-151.0,0.00030865,7]
[403003784,1769044232212,-500.0,0.00030867,2]
[403003785,1769044232221,-500.0,0.00030867,2]
[403003788,1769044232231,-521.08658939,0.00030867,2]
[403003789,1769044232240,-500.0,0.00030867,2]
[403003792,1769044232250,-500.0,0.00030867,2]
[403003794,1769044232260,-432.88767883,0.00030867,2]
[403003795,1769044232269,-119083.7731981,0.00030868,2]
[403003797,1769044232279,-22173.604277,0.00030868,2]
[403003799,1769044232289,-180.8833416,0.00030868,2]
[403003801,1769044232298,-1000.0,0.00031026,2]
[403003803,1769044232307,-500.0,0.00031604,30]
[403003805,1769044232317,-408.98199245,0.00031604,60]
[403003807,1769044232325,-500.0,0.00031604,60]
[403003809,1769044232335,-500.0,0.00031604,60]
[403003811,1769044232344,-150.0,0.00031843,60]
[403003813,1769044232353,-150.0,0.00031843,60]
[403003815,1769044232362,-150.0,0.00031843,60]
[403003817,1769044232371,-150.0,0.00031843,60]
[403003819,1769044232381,-200.00000017,0.00031843,60]
[403003821,1769044232390,-150.0,0.00031843,60]
[403003823,1769044232399,-150.0,0.00031843,60]
[403003825,1769044232408,-500.0,0.00031843,60]
[403003827,1769044232417,-150.0,0.00031843,60]
[403003829,1769044232425,-261.39204598,0.00031843,60]
[403003831,1769044232435,-150.0,0.00031843,60]
[403003833,1769044232444,-500.0,0.00031843,60]
[403003835,1769044232453,-500.0,0.00031843,60]
[403003837,1769044232463,-150.0,0.00031843,60]
[403003839,1769044232472,-150.0,0.00031843,2]
[403003841,1769044232481,-150.0,0.00031843,2]
[403003843,1769044232491,-150.0,0.00031843,60]
[403003845,1769044232500,-150.0,0.00031843,60]
[403003847,1769044232509,-150.0,0.00031843,2]
[403003849,1769044232518,-150.0,0.00031843,14]
[403003851,1769044232527,-150.0,0.00031843,60]
[403003853,1769044232536,-150.0,0.00031843,60]
[403003855,1769044232546,-150.0,0.00031843,60]
[403003857,1769044232555,-150.0,0.00031843,2]
[403003859,1769044232563,-150.0,0.00031898,60]
[403003861,1769044232572,-150.0,0.00031898,60]
[403003863,1769044232582,-150.0,0.00031898,60]
[403003865,1769044232591,-250.0,0.00031898,60]
[403003867,1769044232600,-217.72624624,0.00031898,60]
[403003869,1769044232609,-150.0,0.00031898,60]
[403003870,1769044232618,-500.0,0.00031898,60]
[403003871,1769044232627,-150.0,0.00031898,60]
[403003872,1769044232637,-500.0,0.00031898,60]
[403003874,1769044232646,-562.36201849,0.00031898,60]
[403003876,1769044232656,-150.0,0.00031898,60]
[403003877,1769044232665,-150.0,0.00031898,60]
[403003879,1769044232674,-259.64382423,0.00031898,60]
[403003881,1769044232683,-150.0,0.00031898,2]
[403003904,1769044232879,-203.51325329,0.00031898,14]
[403003907,1769044232898,-150.0,0.00031898,60]
[403003909,1769044232907,-150.0,0.00031898,60]
[403003911,1769044232916,-150.0,0.00031898,60]
[403003913,1769044232925,-150.0,0.00031898,2]
[403003915,1769044232935,-200.0,0.00031953,60]
[403003917,1769044232948,-150.0,0.00031953,60]
[403003919,1769044232957,-150.0,0.00031953,60]
[403003921,1769044232967,-350.0,0.00031953,60]
[403003923,1769044232977,-150.0,0.00031953,60]
[403003925,1769044232988,-350.0,0.00031953,60]
[403003927,1769044232996,-150.0,0.00031953,60]
[403003929,1769044233006,-150.0,0.00031953,60]
[403003931,1769044233017,-150.0,0.00031953,2]
[403003933,1769044233027,-200.0,0.00031953,60]
[403003935,1769044233036,-150.0,0.00031953,60]
[403003937,1769044233046,-150.0,0.00031953,60]
[403003939,1769044233055,-150.00100831,0.00031955,46]
[403003940,1769044233064,-150.0,0.00032007,60]
[403003942,1769044233074,-150.0,0.00032007,60]
[403003944,1769044233084,-251.35617577,0.00032007,60]
[403003947,1769044233093,-150.0,0.00032007,60]
[403003948,1769044233103,-150.0,0.00032007,60]
[403003950,1769044233112,-150.0,0.00032062,60]
[403003952,1769044233121,-150.0,0.00032062,60]
[403003954,1769044233131,-150.0,0.00032062,60]
[403003956,1769044233142,-150.0,0.00032062,60]
[403003958,1769044233151,-250.0,0.00032117,60]
[403003960,1769044233160,-179.71532383,0.00032117,60]
[403003963,1769044233175,-188.0,0.00032117,60]
[403003964,1769044233185,-250.0,0.00032117,60]
[403003966,1769044233194,-2624.38297788,0.00032117,2]
[403003968,1769044233203,-199.97,0.00032197,2]
[403003970,1769044233212,-181.08992329,0.00032877,7]
[403003972,1769044233221,-150.0,0.00032877,7]
[403003974,1769044233230,-200.0,0.00032925,2]
[403003976,1769044233239,-150.00100831,0.00033224,49]
[403003978,1769044233248,-2624.38297788,0.00033467,2]
[403003980,1769044233257,-2000.0,0.000336,2]
[403003982,1769044233266,-3418.7,0.00033636,36]
[403003984,1769044233276,-297.653,0.00033636,36]
[403003986,1769044233284,-1000.0,0.00034474,2]
[403003988,1769044233294,-150.00100831,0.00034493,53]
[403003990,1769044233303,-22173.604277,0.00034587,2]
[403003992,1769044233312,-168.0,0.00034687,2]
[403003993,1769044233322,-2624.38297788,0.00034816,2]
[403003994,1769044233331,-150.0,0.0003493,2]
[403003995,1769044233340,-200.0,0.0003493,2]
[403003996,1769044233350,-150.0,0.0003493,2]
[403003997,1769044233359,-150.381,0.0003493,2]
[403003998,1769044233368,-171.292,0.0003493,2]
[403003999,1769044233377,-150.193,0.0003493,2]
[403004000,1769044233386,-150.0,0.0003493,2]
[403004001,1769044233395,-150.0,0.0003493,2]
[403004002,1769044233404,-150.0,0.0003493,2]
[403004003,1769044233413,-150.044,0.0003493,2]
[403004004,1769044233422,-1332.0,0.0003493,2]
[403004005,1769044233431,-615.0,0.0003493,2]
[403004006,1769044233440,-1613.524,0.0003493,2]
[403004007,1769044233449,-1203.0,0.0003493,2]
[403004008,1769044233458,-4825.0,0.0003493,2]
[403004009,1769044233467,-2440.0,0.0003493,2]
[403004010,1769044233477,-3866.34533145,0.00034962,2]
[403004011,1769044233487,-6674.56,0.0003497,2]
[403004012,1769044233495,-151.0,0.00035055,14]
[403004013,1769044233505,-119083.7731981,0.00035058,2]
[403004014,1769044233515,-1809.04,0.00035062,2]
[403004015,1769044233523,-500.0,0.0003533,30]
[403004016,1769044233532,-500.0,0.0003533,60]
[403004017,1769044233541,-500.0,0.0003533,60]
[403004018,1769044233550,-168.0,0.00035435,2]
[403004019,1769044233560,-666.0,0.000355,2]
[403004020,1769044233569,-1000.0,0.00035616,7]
[403004021,1769044233579,-484.09,0.00035682,2]
[403004022,1769044233588,-200.0,0.00035743,2]
[403004023,1769044233598,-150.00100852,0.00035762,57]
[403004024,1769044233607,-1000.0,0.000358,30]
[403004025,1769044233616,-3866.34533145,0.00035845,2]
[403004026,1769044233625,-1000.0,0.0003589,14]
[403004027,1769044233634,-166.0,0.0003589,30]
[403004028,1769044233643,-345.37,0.00035916,2]
[403004029,1769044233652,-166.0,0.00036,30]
[403004030,1769044233661,-200.0,0.00036075,10]
[403004031,1769044233670,-200.0,0.00036076,10]
[403004032,1769044233679,-1000.0,0.00036164,14]
[403004033,1769044233688,-2624.38297788,0.00036166,2]
[403004034,1769044233697,-763.5,0.00036206,30]
[403004035,1769044233706,-1000.0,0.00036267,2]
[403004036,1769044233715,-180.8833416,0.00036294,2]
[403004037,1769044233724,-150.0,0.000363,2]
[403004038,1769044233732,-248.72844434,0.00036366,28]
[403004039,1769044233742,-151.0,0.00036366,28]
[403004040,1769044233751,-151.0,0.00036366,28]
[403004041,1769044233760,-151.0,0.00036366,28]
[403004042,1769044233769,-151.0,0.00036366,28]
[403004043,1769044233778,-151.0,0.00036366,28]
[403004044,1769044233787,-151.0,0.00036366,28]
[403004045,1769044233796,-151.0,0.00036366,28]
[403004046,1769044233806,-151.0,0.00036366,28]
[403004047,1769044233816,-151.0,0.00036366,28]
[403004048,1769044233828,-151.0,0.00036366,28]
[403004049,1769044233838,-151.0,0.00036366,28]
[403004050,1769044233848,-151.0,0.00036366,28]
[403004051,1769044233859,-151.0,0.00036366,28]
[403004052,1769044233868,-223.24209,0.00036367,77]
[403004053,1769044233879,-606.0,0.00036386,2]
[403004054,1769044233888,-613.0,0.00036426,2]
[403004055,1769044233898,-7364.0,0.00036438,5]
[403004056,1769044233908,-1000.0,0.00036438,14]
[403004057,1769044233919,-151.0,0.00036486,7]
[403004058,1769044233929,-223.2421,0.00036567,77]
[403004059,1769044233939,-967.77,0.00036575,2]
[403004060,1769044233952,-484.09,0.00036575,2]
[403004061,1769044233962,-484.09,0.00036575,2]
[403004062,1769044233972,-484.09,0.00036575,2]
[403004063,1769044233982,-484.09,0.00036575,2]
[403004064,1769044233992,-484.09,0.00036575,2]
[403004065,1769044234001,-484.09,0.00036575,2]
[403004066,1769044234011,-484.09,0.00036575,2]
[403004067,1769044234021,-484.09,0.00036575,2]
[403004068,1769044234031,-484.09,0.00036575,2]
[403004069,1769044234040,-484.09,0.00036575,2]
[403004070,1769044234050,-484.09,0.00036575,2]
[403004071,1769044234060,-484.09,0.00036575,2]
[403004072,1769044234069,-484.09,0.00036575,2]
[403004073,1769044234078,-500.0,0.0003667,2]
[403004074,1769044234088,-765.31,0.00036696,120]
[403004075,1769044234097,-606.0,0.00036711,2]
[403004076,1769044234106,-1000.0,0.00036712,14]
[403004077,1769044234115,-3866.34533145,0.00036729,2]
[403004078,1769044234125,-207.88,0.00036751,2]
[403004079,1769044234134,-500.0,0.00036763,20]
[403004080,1769044234144,-609.0,0.0003692,7]
[403004081,1769044234153,-1000.0,0.00036986,14]
[403004082,1769044234163,-624.64,0.00037,30]
[403004083,1769044234172,-500.0,0.00037,60]
[403004084,1769044234182,-606.0,0.00037003,2]
[403004085,1769044234191,-157.89471827,0.00037031,60]
[403004086,1769044234201,-606.0,0.00037074,2]
[403004087,1769044234210,-1000.0,0.0003726,14]
[403004088,1769044234223,-345.37,0.00037286,2]
[403004089,1769044234232,-2000.0,0.000373,2]
[403004090,1769044234241,-265.08,0.00037372,2]
[403004091,1769044234250,-166.0,0.00037397,30]
[403004092,1769044234259,-1088.30112546,0.00037425,30]
[403004093,1769044234269,-606.0,0.00037427,2]
[403004094,1769044234279,-609.0,0.00037471,2]
[403004095,1769044234290,-606.0,0.00037494,2]
[403004096,1769044234300,-1000.0,0.000375,30]
[403004097,1769044234309,-2624.38297788,0.00037515,2]
[403004098,1769044234319,-204.03,0.00037534,14]
[403004099,1769044234328,-1000.0,0.00037534,14]
[403004100,1769044234337,-251.09,0.00037534,2]
[403004101,1769044234347,-171.97,0.00037534,2]
[403004102,1769044234356,-179.72,0.00037534,2]
[403004103,1769044234365,-170.83,0.00037534,2]
[403004104,1769044234375,-209.24,0.00037534,2]
[403004105,1769044234384,-151.33,0.00037534,2]
[403004106,1769044234394,-468.11,0.00037534,2]
[403004107,1769044234403,-558.13,0.00037534,2]
[403004108,1769044234413,-171.97,0.00037534,2]
[403004109,1769044234422,-150.0,0.00037534,2]
[403004110,1769044234432,-150.0,0.00037534,2]
[403004111,1769044234442,-179.72,0.00037534,2]
[403004112,1769044234452,-150.0,0.00037534,2]
[403004113,1769044234461,-468.11,0.00037534,2]
[403004114,1769044234470,-150.0,0.00037534,2]
[403004115,1769044234480,-179.72,0.00037534,2]
[403004116,1769044234489,-171.97,0.00037534,2]
[403004117,1769044234498,-558.13,0.00037534,2]
[403004118,1769044234507,-468.11,0.00037534,2]
[403004119,1769044234516,-150.0,0.00037534,2]
[403004120,1769044234526,-150.0,0.00037534,2]
[403004121,1769044234535,-179.72,0.00037534,2]
[403004122,1769044234544,-150.0,0.00037534,2]
[403004123,1769044234554,-558.13,0.00037534,2]
[403004124,1769044234563,-171.97,0.00037534,2]
[403004125,1769044234572,-150.0,0.00037534,2]
[403004126,1769044234581,-468.11,0.00037534,2]
[403004127,1769044234591,-150.0,0.00037534,2]
[403004128,1769044234603,-558.13,0.00037534,2]
[403004129,1769044234613,-150.0,0.00037534,2]
[403004130,1769044234622,-468.11,0.00037534,2]
[403004131,1769044234631,-179.72,0.00037534,2]
[403004132,1769044234641,-171.97,0.00037534,2]
[403004133,1769044234650,-179.72,0.00037534,2]
[403004134,1769044234659,-558.13,0.00037534,2]
[403004135,1769044234668,-171.97,0.00037534,2]
[403004136,1769044234677,-935.58,0.00037534,2]
[403004137,1769044234686,-179.72,0.00037534,2]
[403004138,1769044234695,-1112.0,0.00037534,2]
[403004139,1769044234704,-171.97,0.00037534,2]
[403004140,1769044234713,-179.72,0.00037534,2]
[403004141,1769044234722,-171.97,0.00037534,2]
[403004142,1769044234731,-171.97,0.00037534,2]
[403004143,1769044234740,-179.72,0.00037534,2]
[403004144,1769044234749,-171.97,0.00037534,2]
[403004145,1769044234759,-179.72,0.00037534,2]
[403004146,1769044234768,-376.76,0.00037534,2]
[403004147,1769044234777,-346.54,0.00037534,2]
[403004148,1769044234786,-500.0,0.0003757,2]
[403004149,1769044234796,-4324.08399015,0.0003759,2]
[403004150,1769044234806,-180.0,0.00037594,18]
[403004151,1769044234815,-200.0,0.00037602,2]
[403004152,1769044234823,-3866.34533145,0.00037612,2]
[403004153,1769044234832,-200.0,0.00037683,2]
[403004154,1769044234841,-152.0,0.00037709,7]
[403004155,1769044234851,-606.0,0.00037739,2]
[403004156,1769044234860,-204.03,0.00037808,14]
[403004157,1769044234869,-1000.0,0.00037808,14]
[403004158,1769044234879,-255.18,0.00037817,2]
[403004159,1769044234888,-606.0,0.00037838,7]
[403004160,1769044234898,-500.0,0.00037861,60]
[403004161,1769044234907,-233.77,0.00037876,2]